Cogmind - Beta 17 @@@ ROGUE MODE // 2026.08.04 @ 12:49:33 Player: LandRaider Result: Destroyed by Z-Imprinter with Zionite Laser-M Performance ------------- Evolutions (1) 500 Regions Visited (5) 1000 Robots Destroyed (9) 45 Value Destroyed (128) 128 Prototype IDs (3) 60 Alien Tech Used (0) 0 Bonus (273) 273 TOTAL SCORE: 2006 Bonus ------- Met Imprinter 300 Was Imprinted 300 Friendly Fire -327 Cogmind --------- Core Integrity 0/400 Matter 295/300 Energy 99/100 System Corruption 0% Temperature Cool (45) Movement Core (50) Location -7/Deep Caves Parts ------- > --- POWER (1) -------- (None) > --- PROPULSION (2) --- (None) > --- UTILITY (4) ------ Advanced Terrain Scan Processor > --- WEAPON (2) ------- (None) > --- INVENTORY (5) ---- Light Angular Momentum Engine Improved Heat Sink High-capacity Storage Unit Advanced System Shield EM Shotgun Peak State ------------ > --- POWER ------------ Light Ion Engine > --- PROPULSION ------- Improved Hover Unit Improved Hover Unit > --- UTILITY ---------- Small Storage Unit Experimental Sensor Array Terrain Scan Processor Hacking Drone Bay > --- WEAPON ----------- EM Shotgun RU-N14's Throwing Claymores > --- INVENTORY -------- Ion Engine Improved Hover Unit Improved Hover Unit Heat Sink Terrain Scanner ECM Suite Medium Armor Plating Assault Rifle [Rating: 36] Favorites ----------- Power Light Ion Engine Engine Light Ion Engine Propulsion Improved Hover Unit Wheel Compact Wheel Hover Unit Improved Hover Unit Utility Terrain Scanner Device Terrain Scanner Storage High-capacity Storage Unit Processor Advanced Terrain Scan Processor Protection Medium Armor Plating Weapon EM Shotgun Energy Gun EM Shotgun Ballistic Gun Assault Rifle Special Weapon RU-N14's Throwing Claymores Impact Weapon Hammer Piercing Weapon CR-A16's Pointy Stick Build | -11 -10 -9 -9 -7 -7 ------- Run | Yrd Mat Mat Min Zio Dee Slots Evolved 2 | . . 2 . . . Power . | . . . . . . Propulsion . | . . . . . . Utility 2 | . . 2 . . . Weapon . | . . . . . . Parts Attached 25 | 7 2 5 1 7 3 Power 3 | 2 . . . . 1 Engine 3 | 2 . . . . 1 Core . | . . . . . . Reactor . | . . . . . . Propulsion 4 | 2 . 2 . . . Treads . | . . . . . . Leg . | . . . . . . Wheel 2 | 2 . . . . . Hover 2 | . . 2 . . . Flight . | . . . . . . Utility 11 | 1 1 3 1 4 1 Device 4 | . . 2 1 1 . Storage 2 | 1 . . . 1 . Processor 3 | . . 1 . 2 . Hackware . | . . . . . . Protection 2 | . 1 . . . 1 Artifact . | . . . . . . Weapon 7 | 2 1 . . 3 1 Energy Gun 1 | . . . . 1 . Energy Cannon . | . . . . . . Ballistic Gun 3 | 2 . . . . 1 Ballistic Cannon . | . . . . . . Launcher . | . . . . . . Special Weapon 1 | . . . . 1 . Impact Weapon 1 | . 1 . . . . Slashing Weapon . | . . . . . . Piercing Weapon 1 | . . . . 1 . Special Melee Weapon . | . . . . . . Unidentified Prototypes 3 | . . . 1 2 . Parts Lost 7 | . . . . . 7 Power 1 | . . . . . 1 Propulsion 2 | . . . . . 2 Utility 4 | . . . . . 4 Weapon . | . . . . . . Highest Loss Streak 7 | . . . . . 7 To Critical Strikes . | . . . . . . Average Backups 10 | 3 7 7 7 12 10 Power 1 | . 1 1 1 1 1 Propulsion 2 | 2 3 2 2 2 . Utility 5 | . 2 2 2 6 6 Weapon 2 | . . 1 2 2 1 Tool/Special . | . . . . . . Unused Backups 17 | . 5 2 . 1 9 Power . | . . . . . . Propulsion 8 | . 4 2 . . 2 Utility 6 | . . . . . 6 Weapon 3 | . 1 . . 1 1 Tool/Special . | . . . . . . Average Slot Usage (%) 97 | . 99 94 88 99 86 Engine 11 | . 14 11 11 11 10 Wheel 4 | . 28 17 . . . Hover 18 | . . 4 22 22 20 Device 18 | . . 18 22 22 18 Storage 11 | . 14 11 11 11 11 Processor 9 | . . 10 11 11 11 Protection 1 | . 13 3 . . 2 Energy Gun 7 | . . . . 10 5 Ballistic Gun 5 | . 22 15 11 . 5 Special Weapon 6 | . . . . 10 . Peak Build Rating 36 | 6 9 12 20 36 35 Average Rating 26 | 4 8 10 19 31 27 On Entrance 13 | . 6 9 12 20 34 Avg Prop Armor Cover (%) . | . . . . . . Naked Turns . | . . . . . . Heaviest Build 63 | 12 19 20 13 56 63 Greatest Support 26 | 26 26 26 14 14 14 Greatest Overweight (x) 4 | . . 1 . 3 4 Average Overweight (x) 1 | . . . . 2 . Largest Inventory Capacity 20 | 8 8 8 8 20 20 Average Capacity 15 | 7 8 8 8 18 12 Most Carried 15 | 6 8 8 8 15 15 Average Carried 10 | 3 7 6 7 12 10 Final Capacity 20 | 8 8 8 8 20 5 Final Carried 15 | 6 8 8 8 15 5 Class Distribution -------------------- 64% | Skirmisher 24% | Mutant 11% | Scout Dominant Class ---------------- Mutant | -10/Materials Mutant | -9/Materials Scout | -9/Mines Skirmisher | -7/Zion Scout | -7/Deep Caves Resources | -11 -10 -9 -9 -7 -7 ----------- Run | Yrd Mat Mat Min Zio Dee Matter Collected 566 | 226 52 52 71 125 40 Remotely . | . . . . . . Salvage Created 209 | . 118 52 . . 39 Parts 16 | . 13 3 . . . Haulers Intercepted . | . . . . . . Recyclers Shooed . | . . . . . . Parts Field Recycled . | . . . . . . Retrieved Matter . | . . . . . . Parts Self-Destructed . | . . . . . . Prevented . | . . . . . . Parts Restored . | . . . . . . Kills | -11 -10 -9 -9 -7 -7 ------- Run | Yrd Mat Mat Min Zio Dee Combat Hostiles Destroyed 10 | . 5 3 . . 2 Guns 8 | . 5 3 . . . Cannons 1 | . . . . . 1 AOE 1 | . . . . . 1 Classes Destroyed 3 | . 2 . . . 1 Swarmer 6 | . 3 3 . . . Grunt 2 | . 2 . . . . Assembled 2 | . . . . . 2 Thug 1 | . . . . . 1 Best Kill Streak 4 | . 4 3 . . 2 Combat Bots Only 4 | . 4 3 . . 2 Max Kills in Single Turn 2 | . 1 2 . . 2 Gunslinging 1 | . . 1 . . . Exploded 1 | . . . . . 1 Melee . | . . . . . . Uniques/NPCs Destroyed . | . . . . . . Combat | -11 -10 -9 -9 -7 -7 -------- Run | Yrd Mat Mat Min Zio Dee Hostile Shots Fired 84 | . 16 16 . . 52 Missed 37 | . 5 10 . . 22 Hits 47 | . 11 6 . . 30 Projectile 47 | . 11 6 . . 30 Damage Taken 1090 | . 116 48 . . 926 Core 429 | . 23 . . . 406 Absorbed by Shields . | . . . . . . Core Remaining (%) 95 | 100 90 . . . . Volleys Fired 26 | . 12 12 . . 2 Largest 2 | . 2 2 . . 1 Hottest 40 | . 40 40 . . . Shots Fired 50 | . 24 24 . . 2 Gun 48 | . 24 24 . . . Cannon . | . . . . . . Launcher . | . . . . . . Special 2 | . . . . . 2 Kinetic 48 | . 24 24 . . . Thermal . | . . . . . . Explosive 2 | . . . . . 2 Electromagnetic . | . . . . . . Robot Hit Streak 8 | . 8 4 . . 1 Robot Miss Streak 4 | . 2 4 . . 1 Penetration Max . | . . . . . . Secondary Targets 1 | . . 1 . . . Max Gunslinging Chain 1 | . . 1 . . . Shots Hit Robots 28 | . 14 13 . . 1 Core Hits 14 | . 7 3 . . 4 Critical Kills . | . . . . . . Critical Parts Destroyed . | . . . . . . Critical Strikes 1 | . . . . . 1 Sever 1 | . . . . . 1 Melee Attacks 5 | . 5 . . . . Impact 5 | . 5 . . . . Slashing . | . . . . . . Piercing . | . . . . . . Sneak Attacks . | . . . . . . Combat Hostiles . | . . . . . . Follow-up Attacks . | . . . . . . Damage Inflicted 707 | . 153 133 . . 421 Guns 286 | . 153 133 . . . Cannons . | . . . . . . Explosions 334 | . . . . . 334 Melee . | . . . . . . Ramming . | . . . . . . Kinetic 286 | . 153 133 . . . Thermal . | . . . . . . Explosive 334 | . . . . . 334 Electromagnetic . | . . . . . . Impact . | . . . . . . Slashing 87 | . . . . . 87 Piercing . | . . . . . . Highest Corruption . | . . . . . . Average Corruption . | . . . . . . Corruption Purged . | . . . . . . Corruption Blocked . | . . . . . . Overload Shots . | . . . . . . Overflow Damage 63 | . . . . . 63 Projectiles 54 | . . . . . 54 Explosions 9 | . . . . . 9 Melee . | . . . . . . Knockbacks . | . . . . . . Impact . | . . . . . . Kinetic . | . . . . . . Secondary . | . . . . . . Self-Inflicted Damage . | . . . . . . Shots . | . . . . . . Rammed . | . . . . . . Targets Rammed . | . . . . . . Kicked . | . . . . . . Crushed . | . . . . . . Highest Temperature 24 | . 24 . . . 8 Average Temperature 8 | . 9 . . . 3 Received Heat Transfer 315 | . 54 . . . 261 Siege Activations . | . . . . . . Martial Activations . | . . . . . . Shielding Activations . | . . . . . . Robots Disrupted . | . . . . . . Combat Hostiles . | . . . . . . Robots Corrupted . | . . . . . . Combat Hostiles . | . . . . . . Parts Fried . | . . . . . . Impact Corruptions . | . . . . . . Robots Melted . | . . . . . . Combat Hostiles . | . . . . . . Parts Melted . | . . . . . . Heat Transferred . | . . . . . . Parts Sabotaged . | . . . . . . Parts Stolen . | . . . . . . Parts Stripped . | . . . . . . Power Chain Reactions . | . . . . . . Alert | -11 -10 -9 -9 -7 -7 ------- Run | Yrd Mat Mat Min Zio Dee Maximum Alert Level . | . . . . . . Low Security (%) 100 | 100 100 100 100 . . Level 1 . | . . . . . . Level 2 . | . . . . . . Level 3 . | . . . . . . Level 4 . | . . . . . . Level 5 . | . . . . . . High Security . | . . . . . . Max Security . | . . . . . . Peak Influence 110 | . 110 83 12 . . Initial 23 | . . 23 12 . . Average 30 | . 49 51 1 . . Influence Increases 225 | . 155 70 . . . Destroy 0b10 Robot/C 160 | . 100 60 . . . Destroy Leader 40 | . 30 10 . . . Successful Hack 21 | . 21 . . . . Destroy Structure 4 | . 4 . . . . Influence Decreases 225 | . 99 93 33 . . Entered New Map 54 | . . 33 21 . . Time Decay 171 | . 99 60 12 . . Squads Dispatched 3 | . 3 . . . . Investigation 2 | . 2 . . . . Extermination . | . . . . . . Reinforcement 1 | . 1 . . . . Assault . | . . . . . . Garrison . | . . . . . . Intercept . | . . . . . . Searches Triggered . | . . . . . . Construction Impeded . | . . . . . . Haulers Reinforced . | . . . . . . Active Scanning Responses . | . . . . . . Cargo Convoy Interrupts . | . . . . . . Stealth | -11 -10 -9 -9 -7 -7 --------- Run | Yrd Mat Mat Min Zio Dee Distress Signals . | . . . . . . Communications Jammed . | . . . . . . Distress Signals . | . . . . . . Times Spotted 19 | . 8 4 . . 7 Peak Tracking Total 7 | . 5 3 . . 7 Tactical Retreats . | . . . . . . Traps | -11 -10 -9 -9 -7 -7 ------- Run | Yrd Mat Mat Min Zio Dee Traps Triggered . | . . . . . . Indirectly . | . . . . . . Trap Hack Attempts . | . . . . . . Triggered . | . . . . . . Disarmed . | . . . . . . Reprogrammed . | . . . . . . Reused . | . . . . . . Traps Extracted . | . . . . . . Installed . | . . . . . . Triggered . | . . . . . . Machines | -11 -10 -9 -9 -7 -7 ---------- Run | Yrd Mat Mat Min Zio Dee Machines Disabled 1 | . . . . . 1 Max in Single Turn 1 | . . . . . 1 Machines Repaired . | . . . . . . Machines Dismantled . | . . . . . . Machines Sabotaged . | . . . . . . Overloaded Fab Kills . | . . . . . . Hacking | -11 -10 -9 -9 -7 -7 --------- Run | Yrd Mat Mat Min Zio Dee Machines Accessed 4 | . 4 . . . . Terminals 4 | . 4 . . . . Fabricators . | . . . . . . Repair Stations . | . . . . . . Recycling Units . | . . . . . . Scanalyzers . | . . . . . . Garrison Access . | . . . . . . Total Hacks 15 | . 15 . . . . Successful 10 | . 10 . . . . Failed 5 | . 5 . . . . Catastrophic 1 | . 1 . . . . Database Lockouts . | . . . . . . Manual 19 | . 12 . . 7 . Terminals 15 | . 15 . . . . Fabricators . | . . . . . . Repair Stations . | . . . . . . Recycling Units . | . . . . . . Scanalyzers . | . . . . . . Garrison Access . | . . . . . . Terminal Hacks 3 | . 3 . . . . Record 2 | . 2 . . . . Terminal Index 1 | . 1 . . . . Fabricator Hacks . | . . . . . . Repair Station Hacks . | . . . . . . Recycling Unit Hacks . | . . . . . . Scanalyzer . | . . . . . . Garrison Access Hacks . | . . . . . . Unauthorized Hacks 7 | . 7 . . . . Terminals 7 | . 7 . . . . Track 3 | . 3 . . . . Botnet 4 | . 4 . . . . Fabricators . | . . . . . . Repair Stations . | . . . . . . Recycling Units . | . . . . . . Scanalyzers . | . . . . . . Garrison Access . | . . . . . . Data Cores Recovered . | . . . . . . Used . | . . . . . . Hacking Detections 4 | . 4 . . . . Full Trace Events 3 | . 3 . . . . Feedback Events . | . . . . . . Feedback Blocked . | . . . . . . Robot Schematics Acquired 3 | . . . . 3 . Robots Built . | . . . . . . Authchips . | . . . . . . Time . | . . . . . . Total Robot Build Rating . | . . . . . . Part Schematics Acquired 14 | . . . . 14 . Parts Built . | . . . . . . Authchips . | . . . . . . Time . | . . . . . . Total Part Build Rating . | . . . . . . Part Studies Acquired . | . . . . . . Parts Repaired . | . . . . . . Time . | . . . . . . Parts Recycled . | . . . . . . Recycled Matter . | . . . . . . Retrieved Matter . | . . . . . . Retrieved Components . | . . . . . . Parts Scanalyzed . | . . . . . . Part Schematics Acquired . | . . . . . . Parts Damaged . | . . . . . . Bothacking | -11 -10 -9 -9 -7 -7 ------------ Run | Yrd Mat Mat Min Zio Dee Used RIF Installer . | . . . . . . Robots Hacked . | . . . . . . Non-combat . | . . . . . . Combat . | . . . . . . Robot Hacks Applied . | . . . . . . Relay Couplers Released . | . . . . . . Fabnet Peak Effective % . | . . . . . . Robots Rewired . | . . . . . . Allies Hacked . | . . . . . . Hacks Repelled . | . . . . . . Allies | -11 -10 -9 -9 -7 -7 -------- Run | Yrd Mat Mat Min Zio Dee Total Allies 6 | . . . . 6 . Largest Group 6 | . . . . 6 2 Highest-Rated Group 216 | . . . . 216 62 Highest-Rated Ally 42 | . . . . 42 31 Total Orders . | . . . . . . Ally Attacks 4 | . . . . . 4 Total Damage 42 | . . . . . 42 Kills 1 | . . . . . 1 Allies Corrupted . | . . . . . . Allies Melted . | . . . . . . Intel | -11 -10 -9 -9 -7 -7 ------- Run | Yrd Mat Mat Min Zio Dee Active Infowar (turns) 2105 | . . 127 197 1559 222 Sensors 1954 | . . . 173 1559 222 Terrain 1984 | . . 127 197 1502 158 ECM 114 | . . 90 24 . . Robot Analysis Total . | . . . . . . Derelict Logs Recovered 1 | . . . . 1 . Drone Launches . | . . . . . . Drone Recoveries . | . . . . . . Exploration | -11 -10 -9 -9 -7 -7 ------------- Run | Yrd Mat Mat Min Zio Dee Turns Passed 2436 | 59 263 127 197 1559 231 Spaces Moved 1632 | 48 216 99 311 743 215 Core 13 | 2 . . . . 11 Treads . | . . . . . . Legs . | . . . . . . Wheels 317 | 46 216 55 . . . Hover 1302 | . . 44 311 743 204 Flight . | . . . . . . Fastest Speed 50 | 50 90 56 56 56 50 Average Speed 134 | 89 90 75 56 203 92 Slowest Speed 296 | 100 90 120 56 236 296 Overloaded Moves . | . . . . . . Propulsion Burnouts . | . . . . . . Robots Hopped . | . . . . . . Potential Cave-ins . | . . . . . . Cave-ins Triggered . | . . . . . . Exploration Rate (%) 35 | 3 29 12 41 83 43 Regions Visited 5 Branch Regions 3 Pre-discovered Areas 1 | . . . . 1 . Known Exits Taken . | . . . . . . Unknown Exits Taken 5 | 1 1 1 1 1 . Scrap Searched 3 | . . . . 3 . Spaces Dug 4 | . 4 . . . . Terrain Destroyed 6 | . 4 . . . 2 Melee 4 | . 4 . . . . Projectile . | . . . . . . AOE 2 | . . . . . 2 Terrain Rammed . | . . . . . . Walls Destroyed . | . . . . . . Machines Disabled . | . . . . . . Actions | -11 -10 -9 -9 -7 -7 --------- Run | Yrd Mat Mat Min Zio Dee Total 1818 | 60 255 131 333 790 249 Wait 62 | . 9 5 18 26 4 Move 1627 | 47 215 98 310 742 215 Hop . | . . . . . . Pick Up 34 | 6 7 3 2 10 6 Fast Attach 12 | 6 1 3 . 1 1 Attach 6 | . . 3 . 1 2 Detach 2 | . . 2 . . . Swap 13 | 1 1 . 1 6 4 Drop 31 | . 5 5 2 4 15 Fire 26 | . 12 12 . . 2 Melee 5 | . 5 . . . . Ram . | . . . . . . Kick . | . . . . . . Crush . | . . . . . . Escape Stasis . | . . . . . . Rewire . | . . . . . . Trap . | . . . . . . Miscellaneous . | . . . . . . Route ------- -11/Scrapyard -10/Materials (discovered 2 exits: [*Mat] / [*Min]) -9/Materials -9/Mines -7/Zion (discovered 2 exits: [*Dee] / [*Pro]) -7/Deep Caves History --------- Turn | Location | Event 31 | -11/Scrapyard | Discovered new exit (range 15) 60 | -11/Scrapyard | Entered Materials 226 | -10/Materials | Discovered new exit (range 8) 305 | -10/Materials | Build established: Mutant 318 | -10/Materials | Discovered new exit (range 4) 323 | -10/Materials | Entered another Materials area 323 | -9/Materials | Evolved 2 slots: Utility x2 448 | -9/Materials | Discovered new exit (range 6) 450 | -9/Materials | Entered Mines 460 | -9/Mines | A Derelict revealed a hidden shortcut to a safe place 471 | -9/Mines | Found a damaged Exp. Sensor Array with a note attached 473 | -9/Mines | Found Prototype Device 474 | -9/Mines | Identified Exp. Sensor Array 526 | -9/Mines | A weapon hastily lodged in a ceiling crevice suddenly fell to the ground 647 | -9/Mines | Entered Zion 656 | -7/Zion | Found CR-A16's Pointy Stick 666 | -7/Zion | Acquired unknown access codes intercepted by a Zionite 673 | -7/Zion | Given the Hacking Drone Bay 674 | -7/Zion | Found Prototype Device 675 | -7/Zion | Identified Hacking Drone Bay 678 | -7/Zion | Discovered new exit (range 12) 729 | -7/Zion | Found Prototype Special Weapon 729 | -7/Zion | Identified RU-N14's Throwing Claymores 816 | -7/Zion | Learned Factory garrison access intel 1016 | -7/Zion | Build established: Skirmisher 1079 | -7/Zion | Gained Derelict followers 1470 | -7/Zion | Met Imprinter 1512 | -7/Zion | Imprinted 1515 | -7/Zion | Declared Zion's savior 1998 | -7/Zion | Learned location of Recycling (-7) 2031 | -7/Zion | Learned Factory emergency access door positions 2154 | -7/Zion | Opened final containment barrier to the Deep Caves 2172 | -7/Zion | Discovered new exit (range 12) 2192 | -7/Zion | Saw the warning signs outside the Deep Caves entrance 2206 | -7/Zion | Entered Deep Caves 2206 | -7/Deep Caves | Accompanied by 6 allies 2395 | -7/Deep Caves | Attacked by Z-Imprinter 2419 | -7/Deep Caves | Z-Facility disabled 2431 | -7/Deep Caves | Core integrity fell below 50% 2437 | -7/Deep Caves | Destroyed by Z-Imprinter with Zionite Laser-M Last Messages --------------- 02296_ Dropped Hcp. Storage Unit. 02296_ Acquired Sml. Storage Unit. 02299_ Acquired Hcp. Storage Unit. 02301_ Acquired Ion Engine. 02304_ Acquired Imp. Heat Sink. 02327_ Dropped Barrage Gun. 02327_ Dropped EM Shotgun. 02328_ Dropped Hacking Drone Bay. 02329_ Acquired EM Shotgun. 02389_ NEW_ZION: Z-Facility proximity alert. Z-Imprinter: GET AWAY FROM HERE! I've worked too hard for our future just to have you ruin everything! 02411_ Ion Engine destroyed. 02419_ Imp. Hover Unit destroyed. 02419_ Z-Facility disabled. 02420_ Terrain Scanner destroyed. 02424_ Imp. Hover Unit destroyed. 02427_ Med. Armor Plating destroyed. 02428_ Exp. Sensor Array destroyed. 02437_ Sml. Storage Unit destroyed. Map ----- +----------------------------------------------------+ | | | | | | | | | | | | | ?????????????????????????????????????????????????? | | ?????????????????????????????????????????????????? | | ?????????????????????????????????????????????????? | | ????????????????????????????????????????????? ??? | | ????????????????????????? ????????????????? ### | | ????????????????????? #?? ## ????????????? # | | ?????????????????? ## ?????????? | | ???????????????? ??????????? | | ?????????????? ?????????? | | ?????????????? ?????????? | | ????????????? ?????????? | | ????????????? """?????????"" | | ???????????? """?????????"" | | ???????????? """"????????"" | | ???????????? """"????????"" | | ??????????? """"??????" | | ??????????? """"????????"" | | ?????????? """""???????"" | | ?????????? """""???????"" | | ?????????? @! """"""??????"" | | ?????????? / """"""??????" | | ?????????? """""?????? | | ??????????? """"""????? | | ??????????? """"""????? | | ???????????? """""??"?? | | ???????????? """"""???"? | | ???????????? """"""?""""" | | ????????????? """""" ??? | | ????????????? """""" ??"" | | ?????????????? z" """" ?"?"" | | ?????????????? """" ""?"""" | | ?????????????? """ """"""" | | ?????????????? """" """"""" | | ?????????????? """" """"" | | ?????????????? """ """ | | ?????????????? """" | | ?????????????? """"""""""" | | ?????????????? """"""""" | | ??????????????? | | ??????????????? | | ???????????????? | | ???????????????? | | ???????????????? | | ????????????????? | +----------------------------------------------------+ Best States ------------- Heat Dissipation 28 Energy Generation 18 Energy Capacity 250 Matter Stores 300 Matter Capacity 300 Sight Range 16 Robot Scan Range 20 Terrain Scan Range 14 Terrain Scan Density 210 ECM Strength 1 Armor Coverage 225 Evasion (%) 53 Item Schematics ----------------- Lgt. Fission Core | -7/Zion | Archive Transmission Jammer | -7/Zion | Archive Lyr. Light Armor Plating | -7/Zion | Archive Nuclear Pulse Thruster | -7/Zion | Archive Imp. Thermal Shield | -7/Zion | Archive Core Analyzer | -7/Zion | Archive Hvy. Machine Gun | -7/Zion | Archive Launcher Guidance Computer | -7/Zion | Archive Imp. Target Analyzer | -7/Zion | Archive Imp. Carbon-fiber Leg | -7/Zion | Archive Imp. Particle Charger | -7/Zion | Archive Arm. Huge Wheel | -7/Zion | Archive Imp. Deuterium Engine | -7/Zion | Archive Variable Charge Gun | -7/Zion | Archive Robot Schematics ------------------ A-02 Transporter | -7/Zion | Archive L-41 Fighter | -7/Zion | Archive K-01 Serf | -7/Zion | Archive Fabricated ------------ Nothing Repaired ---------- Nothing Studied --------- None Alien Tech Used ----------------- None Achievements -------------- Adventurer Signs Are For Wimps Challenges ------------ None Game ------ Seed VariableFieldDerivative Manual? 0 Play Time 00:37:06 Cumulative 35.2 hours Start 2026.08.04 @ 12:03:59 End 2026.08.04 @ 12:49:33 Sessions 1 Manual Loads 0 Difficulty Rogue Special Mode None Game No. 31 Rogue 29 Adventurer 2 Explorer 0 Win Type - Total 0 Types 0/0/0/0/0/0/0/0/0/0 Lore% 26 Gallery% 23 Achievement% 20 Wizard Run 0 Options --------- Layout 0 ASCII 0 Keyboard 0 Movement Mouse Keybinds 0 Fullscreen 2 Font 24/Smallcaps Map View 76x50 Zoom Use 0% Tactical HUD 1 Map Filters NONE Filters NONE Steam 1 RUN: 918740cd-3fbc-424d-9658-eb505965f8e6